[Event "Titled Tuesday Blitz November 01 Late 2022"]
[White "Galchenko, Matvey"]
[Black "Bjelobrk, Igor"]
[WhiteFideId "24175480"]
[BlackFideId "4300726"]
[WhiteElo "2423"]
[BlackElo "2335"]
[Result "1-0"]
[Round "10"]
[TimeControl "180+1"]
[Date "2022.11.01"]
[WhiteClock "0:00:26"]
[BlackClock "0:00:08"]

1. f4 {[%clk 0:03:00]}  g6 {[%clk 0:02:55]} 2. Nf3 {[%clk 0:03:01]}  Bg7 {[%clk 0:02:55]} 3. g3 {[%clk 0:03:02]}  d5 {[%clk 0:02:55]} 4. Bg2 {[%clk 0:03:02]}  Nf6 {[%clk 0:02:55]} 5. O-O {[%clk 0:03:03]}  O-O {[%clk 0:02:55]} 6. d3 {[%clk 0:03:04]}  b6 {[%clk 0:02:56]} 7. a4 {[%clk 0:03:01]}  a6 {[%clk 0:02:52]} 8. a5 {[%clk 0:02:58]}  b5 {[%clk 0:02:52]} 9. Ne5 {[%clk 0:02:55]}  Bb7 {[%clk 0:02:47]} 10. c4 {[%clk 0:02:51]}  e6 {[%clk 0:02:35]} 11. Nc3 {[%clk 0:02:46]}  c6 {[%clk 0:02:34]} 12. e4 {[%clk 0:02:46]}  Nbd7 {[%clk 0:02:27]} 13. Nxd7 {[%clk 0:02:40]}  Qxd7 {[%clk 0:02:26]} 14. e5 {[%clk 0:02:39]}  Ne8 {[%clk 0:02:25]} 15. b3 {[%clk 0:02:31]}  f6 {[%clk 0:02:16]} 16. Ba3 {[%clk 0:02:29]}  Rf7 {[%clk 0:02:15]} 17. d4 {[%clk 0:02:27]}  f5 {[%clk 0:01:26]} 18. cxb5 {[%clk 0:02:08]}  axb5 {[%clk 0:01:17]} 19. Bc5 {[%clk 0:02:07]}  Nc7 {[%clk 0:01:17]} 20. Bb6 {[%clk 0:02:00]}  Na6 {[%clk 0:01:16]} 21. g4 {[%clk 0:01:59]}  Bf8 {[%clk 0:01:16]} 22. Ne2 {[%clk 0:01:56]}  b4 {[%clk 0:01:14]} 23. Rc1 {[%clk 0:01:53]}  Nc7 {[%clk 0:01:12]} 24. h3 {[%clk 0:01:43]}  Nb5 {[%clk 0:01:12]} 25. Ng3 {[%clk 0:01:40]}  Nc3 {[%clk 0:01:10]} 26. Qd2 {[%clk 0:01:41]}  Ba6 {[%clk 0:01:09]} 27. Rf3 {[%clk 0:01:40]}  Rc8 {[%clk 0:01:08]} 28. Rfxc3 {[%clk 0:01:39]}  bxc3 {[%clk 0:01:07]} 29. Qxc3 {[%clk 0:01:40]}  fxg4 {[%clk 0:01:06]} 30. Bf1 {[%clk 0:01:24]}  Bxf1 {[%clk 0:01:00]} 31. Rxf1 {[%clk 0:01:25]}  gxh3 {[%clk 0:01:00]} 32. Qd3 {[%clk 0:01:19]}  Bh6 {[%clk 0:00:58]} 33. Ne2 {[%clk 0:01:19]}  Rcf8 {[%clk 0:00:54]} 34. Qxh3 {[%clk 0:01:19]}  Bxf4 {[%clk 0:00:53]} 35. Kg2 {[%clk 0:01:17]}  Bg5 {[%clk 0:00:43]} 36. Re1 {[%clk 0:00:53]}  Rf2+ {[%clk 0:00:43]} 37. Kg1 {[%clk 0:00:54]}  Qf7 {[%clk 0:00:41]} 38. Bc5 {[%clk 0:00:51]}  Rf3 {[%clk 0:00:38]} 39. Qg2 {[%clk 0:00:50]}  Be3+ {[%clk 0:00:38]} 40. Kh1 {[%clk 0:00:50]}  Rf1+ {[%clk 0:00:32]} 41. Qxf1 {[%clk 0:00:30]}  Qxf1+ {[%clk 0:00:33]} 42. Rxf1 {[%clk 0:00:31]}  Rxf1+ {[%clk 0:00:33]} 43. Kg2 {[%clk 0:00:32]}  Rf2+ {[%clk 0:00:34]} 44. Kg3 {[%clk 0:00:33]}  Rxe2 {[%clk 0:00:34]} 45. Kf3 {[%clk 0:00:33]}  Re1 {[%clk 0:00:35]} 46. a6 {[%clk 0:00:34]}  Bh6 {[%clk 0:00:33]} 47. a7 {[%clk 0:00:32]}  Ra1 {[%clk 0:00:33]} 48. Bb6 {[%clk 0:00:31]}  Kf7 {[%clk 0:00:32]} 49. b4 {[%clk 0:00:31]}  Ke8 {[%clk 0:00:31]} 50. Ba5 {[%clk 0:00:31]}  Ra3+ {[%clk 0:00:18]} 51. Ke2 {[%clk 0:00:30]}  Bg5 {[%clk 0:00:18]} 52. a8=Q+ {[%clk 0:00:30]}  Kf7 {[%clk 0:00:18]} 53. Qxc6 {[%clk 0:00:30]}  Be7 {[%clk 0:00:19]} 54. Qd7 {[%clk 0:00:29]}  Ra2+ {[%clk 0:00:15]} 55. Kd3 {[%clk 0:00:29]}  Ra3+ {[%clk 0:00:15]} 56. Kc2 {[%clk 0:00:29]}  Kf8 {[%clk 0:00:08]} 57. Qxe6 {[%clk 0:00:26]} 1-0


[Site "https://www.chess.com"]

[Event "Titled Tuesday Blitz November 01 Late 2022"]
[White "Harvey, Marcus R"]
[Black "Zivkovic, Nemanja"]
[WhiteFideId "400092"]
[BlackFideId "942154"]
[WhiteElo "2457"]
[BlackElo "2372"]
[Result "0-1"]
[Round "10"]
[TimeControl "180+1"]
[Date "2022.11.01"]
[WhiteClock "0:00:03"]
[BlackClock "0:00:11"]

1. Nf3 {[%clk 0:02:58]}  Nf6 {[%clk 0:02:57]} 2. b3 {[%clk 0:02:58]}  g6 {[%clk 0:02:56]} 3. Bb2 {[%clk 0:02:59]}  Bg7 {[%clk 0:02:57]} 4. g3 {[%clk 0:02:59]}  O-O {[%clk 0:02:53]} 5. Bg2 {[%clk 0:02:59]}  d6 {[%clk 0:02:48]} 6. d4 {[%clk 0:02:59]}  Bf5 {[%clk 0:02:42]} 7. O-O {[%clk 0:02:59]}  Nbd7 {[%clk 0:02:38]} 8. Nbd2 {[%clk 0:02:58]}  d5 {[%clk 0:02:31]} 9. Nh4 {[%clk 0:02:52]}  e6 {[%clk 0:02:30]} 10. f3 {[%clk 0:02:40]}  c5 {[%clk 0:02:28]} 11. g4 {[%clk 0:02:26]}  Bxg4 {[%clk 0:02:25]} 12. fxg4 {[%clk 0:02:25]}  Nxg4 {[%clk 0:02:25]} 13. Qe1 {[%clk 0:01:50]}  cxd4 {[%clk 0:02:20]} 14. Rc1 {[%clk 0:01:43]}  Rc8 {[%clk 0:02:16]} 15. Nhf3 {[%clk 0:01:30]}  Qb6 {[%clk 0:02:12]} 16. Kh1 {[%clk 0:01:25]}  Ne3 {[%clk 0:02:07]} 17. Rg1 {[%clk 0:01:22]}  Nxc2 {[%clk 0:01:58]} 18. Qh4 {[%clk 0:01:22]}  h6 {[%clk 0:01:52]} 19. Bh3 {[%clk 0:01:13]}  Rfe8 {[%clk 0:01:36]} 20. Qf4 {[%clk 0:00:47]}  a5 {[%clk 0:01:11]} 21. Rcf1 {[%clk 0:00:29]}  e5 {[%clk 0:00:56]} 22. Nxe5 {[%clk 0:00:06]}  Nxe5 {[%clk 0:00:56]} 23. Bxc8 {[%clk 0:00:05]}  Rxc8 {[%clk 0:00:57]} 24. Nf3 {[%clk 0:00:04]}  Nxf3 {[%clk 0:00:36]} 25. Qxf3 {[%clk 0:00:03]}  Qe6 {[%clk 0:00:35]} 26. Bc1 {[%clk 0:00:03]}  Ne3 {[%clk 0:00:30]} 27. Bxe3 {[%clk 0:00:02]}  dxe3 {[%clk 0:00:31]} 28. Rc1 {[%clk 0:00:03]}  Rc6 {[%clk 0:00:25]} 29. Rxc6 {[%clk 0:00:02]}  bxc6 {[%clk 0:00:26]} 30. Qf4 {[%clk 0:00:02]}  f5 {[%clk 0:00:18]} 31. Rf1 {[%clk 0:00:02]}  Kh7 {[%clk 0:00:17]} 32. Qf3 {[%clk 0:00:03]}  Be5 {[%clk 0:00:10]} 33. a3 {[%clk 0:00:03]}  Bd6 {[%clk 0:00:10]} 34. b4 {[%clk 0:00:02]}  axb4 {[%clk 0:00:11]} 35. axb4 {[%clk 0:00:03]}  Qe5 {[%clk 0:00:10]} 36. Qg2 {[%clk 0:00:03]}  Bxb4 {[%clk 0:00:09]} 37. Rg1 {[%clk 0:00:03]}  g5 {[%clk 0:00:09]} 38. Rb1 {[%clk 0:00:04]}  Bd6 {[%clk 0:00:09]} 39. h4 {[%clk 0:00:04]}  Kg6 {[%clk 0:00:09]} 40. hxg5 {[%clk 0:00:04]}  hxg5 {[%clk 0:00:10]} 41. Qh3 {[%clk 0:00:05]}  g4 {[%clk 0:00:09]} 42. Qh4 {[%clk 0:00:05]}  Qe4+ {[%clk 0:00:10]} 43. Kg1 {[%clk 0:00:04]}  Qxb1+ {[%clk 0:00:10]} 44. Kg2 {[%clk 0:00:04]}  Qe4+ {[%clk 0:00:11]} 45. Kg1 {[%clk 0:00:05]}  Qf4 {[%clk 0:00:11]} 46. Kg2 {[%clk 0:00:03]}  Qf2+ {[%clk 0:00:11]} 0-1


[Site "https://www.chess.com"]

[Event "Titled Tuesday Blitz November 01 Late 2022"]
[White "Haszon, David"]
[Black "Kodinets, Konstantin L."]
[WhiteFideId "733610"]
[BlackFideId "4122011"]
[WhiteElo "2211"]
[BlackElo "2447"]
[Result "0-1"]
[Round "10"]
[TimeControl "180+1"]
[Date "2022.11.02"]
[WhiteClock "0:00:16"]
[BlackClock "0:00:14"]

1. e4 {[%clk 0:03:00]}  e5 {[%clk 0:02:59]} 2. Nf3 {[%clk 0:03:00]}  d6 {[%clk 0:03:00]} 3. d4 {[%clk 0:02:54]}  exd4 {[%clk 0:03:01]} 4. Bc4 {[%clk 0:02:53]}  Be7 {[%clk 0:02:59]} 5. Qxd4 {[%clk 0:02:41]}  Nf6 {[%clk 0:02:59]} 6. Nc3 {[%clk 0:02:37]}  Nc6 {[%clk 0:02:53]} 7. Qe3 {[%clk 0:02:23]}  Ng4 {[%clk 0:02:47]} 8. Qf4 {[%clk 0:02:19]}  Nge5 {[%clk 0:02:46]} 9. Bb3 {[%clk 0:02:11]}  O-O {[%clk 0:02:46]} 10. Nd5 {[%clk 0:02:09]}  Be6 {[%clk 0:02:39]} 11. c3 {[%clk 0:02:05]}  Re8 {[%clk 0:02:29]} 12. Qg3 {[%clk 0:01:44]}  Nd3+ {[%clk 0:02:27]} 13. Kd2 {[%clk 0:01:41]}  Nxc1 {[%clk 0:02:27]} 14. Raxc1 {[%clk 0:01:40]}  Bf6 {[%clk 0:02:25]} 15. Rce1 {[%clk 0:01:36]}  Bxd5 {[%clk 0:02:24]} 16. Bxd5 {[%clk 0:01:37]}  Ne7 {[%clk 0:02:24]} 17. Bb3 {[%clk 0:01:32]}  a5 {[%clk 0:02:23]} 18. Ng5 {[%clk 0:01:29]}  Bxg5+ {[%clk 0:02:18]} 19. Qxg5 {[%clk 0:01:30]}  a4 {[%clk 0:02:18]} 20. Bc4 {[%clk 0:01:25]}  c6 {[%clk 0:02:12]} 21. a3 {[%clk 0:01:24]}  Ra5 {[%clk 0:02:04]} 22. Qf4 {[%clk 0:01:19]}  d5 {[%clk 0:02:01]} 23. exd5 {[%clk 0:01:15]}  Nxd5 {[%clk 0:02:00]} 24. Rxe8+ {[%clk 0:01:14]}  Qxe8 {[%clk 0:02:00]} 25. Qf3 {[%clk 0:01:01]}  Qd8 {[%clk 0:01:54]} 26. Kc1 {[%clk 0:00:57]}  Qg5+ {[%clk 0:01:20]} 27. Kc2 {[%clk 0:00:46]}  Nf6 {[%clk 0:01:19]} 28. Rd1 {[%clk 0:00:42]}  g6 {[%clk 0:01:04]} 29. g3 {[%clk 0:00:39]}  Kg7 {[%clk 0:01:01]} 30. h4 {[%clk 0:00:35]}  Qf5+ {[%clk 0:01:01]} 31. Qxf5 {[%clk 0:00:34]}  Rxf5 {[%clk 0:01:02]} 32. f4 {[%clk 0:00:31]}  b5 {[%clk 0:00:58]} 33. Bd3 {[%clk 0:00:31]}  Rd5 {[%clk 0:00:57]} 34. Re1 {[%clk 0:00:27]}  h5 {[%clk 0:00:45]} 35. Be4 {[%clk 0:00:26]}  Rd6 {[%clk 0:00:41]} 36. Bf3 {[%clk 0:00:26]}  Ng4 {[%clk 0:00:36]} 37. Bxg4 {[%clk 0:00:25]}  hxg4 {[%clk 0:00:37]} 38. Rd1 {[%clk 0:00:20]}  Re6 {[%clk 0:00:36]} 39. Rd3 {[%clk 0:00:19]}  Re2+ {[%clk 0:00:33]} 40. Rd2 {[%clk 0:00:19]}  Re1 {[%clk 0:00:32]} 41. Rg2 {[%clk 0:00:15]}  Kf6 {[%clk 0:00:31]} 42. c4 {[%clk 0:00:16]}  Re3 {[%clk 0:00:29]} 43. cxb5 {[%clk 0:00:15]}  cxb5 {[%clk 0:00:29]} 44. Rg1 {[%clk 0:00:14]}  Kf5 {[%clk 0:00:28]} 45. Rg2 {[%clk 0:00:14]}  Ke4 {[%clk 0:00:28]} 46. Kd2 {[%clk 0:00:15]}  Rb3 {[%clk 0:00:25]} 47. Kc2 {[%clk 0:00:14]}  Kf3 {[%clk 0:00:24]} 48. Rg1 {[%clk 0:00:14]}  Kf2 {[%clk 0:00:24]} 49. Rd1 {[%clk 0:00:14]}  Kxg3 {[%clk 0:00:18]} 50. Rd7 {[%clk 0:00:15]}  Kxh4 {[%clk 0:00:18]} 51. Rxf7 {[%clk 0:00:15]}  g3 {[%clk 0:00:18]} 52. f5 {[%clk 0:00:16]}  gxf5 {[%clk 0:00:14]} 0-1


[Site "https://www.chess.com"]

[Event "Titled Tuesday Blitz November 01 Late 2022"]
[White "Hemam, Moulaye Brahim"]
[Black "Prydun, Andriy"]
[WhiteFideId "19600054"]
[BlackFideId "14145898"]
[WhiteElo "2088"]
[BlackElo "2163"]
[Result "1-0"]
[Round "10"]
[TimeControl "180+1"]
[Date "2022.11.02"]
[WhiteClock "0:00:31"]
[BlackClock "0:01:34"]

1. e4 {[%clk 0:02:59]}  d5 {[%clk 0:02:49]} 2. exd5 {[%clk 0:02:57]}  Qxd5 {[%clk 0:02:49]} 3. Nc3 {[%clk 0:02:58]}  Qd6 {[%clk 0:02:49]} 4. d4 {[%clk 0:02:57]}  Nf6 {[%clk 0:02:48]} 5. Bc4 {[%clk 0:02:56]}  c6 {[%clk 0:02:46]} 6. Nf3 {[%clk 0:02:48]}  Bf5 {[%clk 0:02:42]} 7. h3 {[%clk 0:02:43]}  Nbd7 {[%clk 0:02:38]} 8. O-O {[%clk 0:02:38]}  e6 {[%clk 0:02:37]} 9. Re1 {[%clk 0:02:36]}  Be7 {[%clk 0:02:36]} 10. Ne5 {[%clk 0:02:35]}  Nxe5 {[%clk 0:02:34]} 11. dxe5 {[%clk 0:02:33]}  Qxd1 {[%clk 0:02:34]} 12. Nxd1 {[%clk 0:02:29]}  Nd7 {[%clk 0:02:33]} 13. Bb3 {[%clk 0:02:24]}  O-O {[%clk 0:02:27]} 14. Ne3 {[%clk 0:02:22]}  Bg6 {[%clk 0:02:26]} 15. Nc4 {[%clk 0:02:15]}  Nc5 {[%clk 0:02:22]} 16. Nd6 {[%clk 0:02:13]}  Rfd8 {[%clk 0:02:19]} 17. Bf4 {[%clk 0:02:10]}  Bxd6 {[%clk 0:02:14]} 18. exd6 {[%clk 0:02:09]}  Rd7 {[%clk 0:02:13]} 19. Rad1 {[%clk 0:01:50]}  Nxb3 {[%clk 0:02:04]} 20. cxb3 {[%clk 0:01:47]}  Be4 {[%clk 0:02:05]} 21. Rxe4 {[%clk 0:01:36]}  Rad8 {[%clk 0:02:02]} 22. Red4 {[%clk 0:01:23]}  f6 {[%clk 0:02:01]} 23. R4d2 {[%clk 0:01:21]}  e5 {[%clk 0:02:01]} 24. Be3 {[%clk 0:01:18]}  Ra8 {[%clk 0:02:00]} 25. a4 {[%clk 0:01:15]}  Kf7 {[%clk 0:02:00]} 26. a5 {[%clk 0:01:15]}  Ke6 {[%clk 0:02:01]} 27. b4 {[%clk 0:01:13]}  a6 {[%clk 0:02:00]} 28. Bb6 {[%clk 0:01:11]}  Rg8 {[%clk 0:02:00]} 29. Bc5 {[%clk 0:01:06]}  g5 {[%clk 0:02:00]} 30. g4 {[%clk 0:01:04]}  h5 {[%clk 0:01:59]} 31. Kg2 {[%clk 0:01:04]}  Rh8 {[%clk 0:01:57]} 32. Rd3 {[%clk 0:01:02]}  h4 {[%clk 0:01:56]} 33. Rf3 {[%clk 0:01:01]}  Rg8 {[%clk 0:01:55]} 34. Rf5 {[%clk 0:01:00]}  Rg6 {[%clk 0:01:55]} 35. Rd3 {[%clk 0:01:00]}  Rh6 {[%clk 0:01:53]} 36. Rdf3 {[%clk 0:00:59]}  Rg6 {[%clk 0:01:54]} 37. Re3 {[%clk 0:00:56]}  Rh6 {[%clk 0:01:53]} 38. f4 {[%clk 0:00:55]}  gxf4 {[%clk 0:01:53]} 39. Rxf4 {[%clk 0:00:55]}  Rg7 {[%clk 0:01:52]} 40. Rf5 {[%clk 0:00:51]}  Rhg6 {[%clk 0:01:48]} 41. Kf3 {[%clk 0:00:50]}  Rg5 {[%clk 0:01:47]} 42. Rxg5 {[%clk 0:00:49]}  Rxg5 {[%clk 0:01:45]} 43. Rd3 {[%clk 0:00:44]}  Kd7 {[%clk 0:01:45]} 44. Ke4 {[%clk 0:00:43]}  Rg6 {[%clk 0:01:39]} 45. Be3 {[%clk 0:00:43]}  Rg8 {[%clk 0:01:36]} 46. Kf5 {[%clk 0:00:42]}  Rf8 {[%clk 0:01:34]} 47. Bh6 {[%clk 0:00:36]}  Rf7 {[%clk 0:01:34]} 48. Kg6 {[%clk 0:00:35]}  Ke6 {[%clk 0:01:34]} 49. d7 {[%clk 0:00:32]}  Rxd7 {[%clk 0:01:35]} 50. Rxd7 {[%clk 0:00:32]}  Kxd7 {[%clk 0:01:35]} 51. Kxf6 {[%clk 0:00:32]}  e4 {[%clk 0:01:34]} 52. Be3 {[%clk 0:00:31]} 1-0


[Site "https://www.chess.com"]

[Event "Titled Tuesday Blitz November 01 Late 2022"]
[White "Indjic, Aleksandar"]
[Black "Seo, Jung Min"]
[WhiteFideId "911925"]
[BlackFideId "1734687"]
[WhiteElo "2592"]
[BlackElo "2455"]
[Result "1/2-1/2"]
[Round "10"]
[TimeControl "180+1"]
[Date "2022.11.01"]
[WhiteClock "0:00:35"]
[BlackClock "0:00:43"]

1. e4 {[%clk 0:03:00]}  c6 {[%clk 0:02:59]} 2. d4 {[%clk 0:03:00]}  d5 {[%clk 0:02:59]} 3. exd5 {[%clk 0:03:01]}  cxd5 {[%clk 0:02:58]} 4. Bd3 {[%clk 0:03:02]}  Nc6 {[%clk 0:02:58]} 5. c3 {[%clk 0:03:02]}  Nf6 {[%clk 0:02:59]} 6. h3 {[%clk 0:02:59]}  e5 {[%clk 0:02:59]} 7. dxe5 {[%clk 0:02:59]}  Nxe5 {[%clk 0:02:59]} 8. Nf3 {[%clk 0:02:58]}  Nxd3+ {[%clk 0:02:57]} 9. Qxd3 {[%clk 0:02:59]}  Bd6 {[%clk 0:02:57]} 10. O-O {[%clk 0:02:59]}  O-O {[%clk 0:02:57]} 11. Bg5 {[%clk 0:02:54]}  h6 {[%clk 0:02:57]} 12. Be3 {[%clk 0:02:43]}  Re8 {[%clk 0:02:53]} 13. Nbd2 {[%clk 0:02:42]}  Ne4 {[%clk 0:02:51]} 14. Nd4 {[%clk 0:02:40]}  Nxd2 {[%clk 0:02:51]} 15. Qxd2 {[%clk 0:02:38]}  Bd7 {[%clk 0:02:46]} 16. Bf4 {[%clk 0:02:37]}  Bf8 {[%clk 0:02:46]} 17. Rfe1 {[%clk 0:02:37]}  Qf6 {[%clk 0:02:44]} 18. Bg3 {[%clk 0:02:31]}  a6 {[%clk 0:02:43]} 19. Nf3 {[%clk 0:02:29]}  Bc6 {[%clk 0:02:39]} 20. Be5 {[%clk 0:02:27]}  Qg6 {[%clk 0:02:39]} 21. Nd4 {[%clk 0:02:27]}  Re7 {[%clk 0:02:35]} 22. Nxc6 {[%clk 0:02:23]}  bxc6 {[%clk 0:02:32]} 23. Bg3 {[%clk 0:02:22]}  Rae8 {[%clk 0:02:30]} 24. Rxe7 {[%clk 0:02:21]}  Rxe7 {[%clk 0:02:30]} 25. Rd1 {[%clk 0:02:20]}  Qe4 {[%clk 0:02:25]} 26. b3 {[%clk 0:02:17]}  Re8 {[%clk 0:02:22]} 27. Kf1 {[%clk 0:02:16]}  h5 {[%clk 0:02:13]} 28. Qd3 {[%clk 0:02:17]}  Qxd3+ {[%clk 0:02:13]} 29. Rxd3 {[%clk 0:02:17]}  g6 {[%clk 0:02:04]} 30. f3 {[%clk 0:02:00]}  f5 {[%clk 0:01:52]} 31. Bf2 {[%clk 0:01:57]}  Kf7 {[%clk 0:01:49]} 32. c4 {[%clk 0:01:56]}  dxc4 {[%clk 0:01:47]} 33. bxc4 {[%clk 0:01:57]}  Rb8 {[%clk 0:01:40]} 34. Rb3 {[%clk 0:01:57]}  Rxb3 {[%clk 0:01:39]} 35. axb3 {[%clk 0:01:58]}  Ke6 {[%clk 0:01:36]} 36. Ke2 {[%clk 0:01:58]}  Bb4 {[%clk 0:01:32]} 37. Kd3 {[%clk 0:01:57]}  Be7 {[%clk 0:01:27]} 38. Be3 {[%clk 0:01:57]}  Bd6 {[%clk 0:01:26]} 39. Kd4 {[%clk 0:01:52]}  Be7 {[%clk 0:01:25]} 40. Bf4 {[%clk 0:01:49]}  c5+ {[%clk 0:01:10]} 41. Kd3 {[%clk 0:01:45]}  Bf8 {[%clk 0:01:08]} 42. Kc2 {[%clk 0:01:45]}  Be7 {[%clk 0:01:06]} 43. Kb2 {[%clk 0:01:44]}  Kd7 {[%clk 0:01:06]} 44. Ka3 {[%clk 0:01:44]}  Kc6 {[%clk 0:01:02]} 45. Ka4 {[%clk 0:01:44]}  Bd8 {[%clk 0:01:02]} 46. Be5 {[%clk 0:01:42]}  Kd7 {[%clk 0:01:01]} 47. Bc3 {[%clk 0:01:37]}  Kc6 {[%clk 0:01:01]} 48. Bd2 {[%clk 0:01:37]}  Bc7 {[%clk 0:01:00]} 49. Be1 {[%clk 0:01:33]}  Bd8 {[%clk 0:01:00]} 50. Bc3 {[%clk 0:01:31]}  Bc7 {[%clk 0:00:59]} 51. Bf6 {[%clk 0:01:30]}  Bb6 {[%clk 0:00:59]} 52. Be5 {[%clk 0:01:19]}  Bd8 {[%clk 0:00:59]} 53. Ka3 {[%clk 0:01:19]}  Bb6 {[%clk 0:00:58]} 54. Bf6 {[%clk 0:01:16]}  Bc7 {[%clk 0:00:58]} 55. Bg5 {[%clk 0:01:16]}  Bb6 {[%clk 0:00:58]} 56. Kb2 {[%clk 0:01:14]}  Ba5 {[%clk 0:00:57]} 57. Kc2 {[%clk 0:01:15]}  Bc7 {[%clk 0:00:57]} 58. Kd3 {[%clk 0:01:15]}  Kd7 {[%clk 0:00:57]} 59. Be3 {[%clk 0:01:10]}  Bd6 {[%clk 0:00:56]} 60. Bf2 {[%clk 0:01:10]}  Ke6 {[%clk 0:00:55]} 61. Kd2 {[%clk 0:01:09]}  Kd7 {[%clk 0:00:55]} 62. Ke3 {[%clk 0:01:09]}  Ke6 {[%clk 0:00:54]} 63. g4 {[%clk 0:01:09]}  hxg4 {[%clk 0:00:49]} 64. fxg4 {[%clk 0:01:07]}  fxg4 {[%clk 0:00:49]} 65. hxg4 {[%clk 0:01:07]}  Bc7 {[%clk 0:00:47]} 66. Ke4 {[%clk 0:01:07]}  Bd6 {[%clk 0:00:47]} 67. Be3 {[%clk 0:01:05]}  Bf8 {[%clk 0:00:46]} 68. Bf4 {[%clk 0:01:01]}  Be7 {[%clk 0:00:46]} 69. Ke3 {[%clk 0:01:01]}  Bf8 {[%clk 0:00:45]} 70. Kd2 {[%clk 0:01:02]}  Be7 {[%clk 0:00:43]} 71. Kd3 {[%clk 0:01:00]}  Bf8 {[%clk 0:00:43]} 72. Ke4 {[%clk 0:00:35]}  Be7 {[%clk 0:00:43]} 1/2-1/2


[Site "https://www.chess.com"]

[Event "Titled Tuesday Blitz November 01 Late 2022"]
[White "Jobava, Baadur"]
[Black "Kollars, Dmitrij"]
[WhiteFideId "13601520"]
[BlackFideId "12909572"]
[WhiteElo "2582"]
[BlackElo "2584"]
[Result "1-0"]
[Round "10"]
[TimeControl "180+1"]
[Date "2022.11.01"]
[WhiteClock "0:01:59"]
[BlackClock "0:00:01"]

1. b3 {[%clk 0:03:00]}  e5 {[%clk 0:02:59]} 2. Bb2 {[%clk 0:03:01]}  Nc6 {[%clk 0:02:59]} 3. Nf3 {[%clk 0:03:02]}  e4 {[%clk 0:02:57]} 4. Nd4 {[%clk 0:03:02]}  Nf6 {[%clk 0:02:58]} 5. e3 {[%clk 0:03:03]}  Bc5 {[%clk 0:02:58]} 6. Nf5 {[%clk 0:03:03]}  g6 {[%clk 0:02:51]} 7. Ng3 {[%clk 0:03:03]}  d5 {[%clk 0:02:50]} 8. d3 {[%clk 0:02:59]}  Bg4 {[%clk 0:02:39]} 9. Be2 {[%clk 0:02:56]}  Bxe2 {[%clk 0:02:37]} 10. Qxe2 {[%clk 0:02:57]}  O-O {[%clk 0:02:27]} 11. O-O {[%clk 0:02:55]}  Re8 {[%clk 0:02:18]} 12. Rd1 {[%clk 0:02:46]}  exd3 {[%clk 0:02:13]} 13. Qxd3 {[%clk 0:02:42]}  Bd6 {[%clk 0:02:04]} 14. Bxf6 {[%clk 0:02:27]}  Qxf6 {[%clk 0:02:03]} 15. Nc3 {[%clk 0:02:28]}  Nb4 {[%clk 0:01:22]} 16. Nxd5 {[%clk 0:02:15]}  Qxa1 {[%clk 0:01:07]} 17. Rxa1 {[%clk 0:02:16]}  Nxd3 {[%clk 0:01:07]} 18. Nf6+ {[%clk 0:02:17]}  Kf8 {[%clk 0:01:06]} 19. Nxe8 {[%clk 0:02:18]}  Be5 {[%clk 0:00:56]} 20. Nxc7 {[%clk 0:02:18]}  Rc8 {[%clk 0:00:48]} 21. Rb1 {[%clk 0:02:12]}  Nxf2 {[%clk 0:00:38]} 22. Kxf2 {[%clk 0:02:13]}  Rxc7 {[%clk 0:00:39]} 23. c4 {[%clk 0:02:13]}  Rd7 {[%clk 0:00:36]} 24. Ke2 {[%clk 0:02:12]}  Bxg3 {[%clk 0:00:19]} 25. hxg3 {[%clk 0:02:12]}  Kg7 {[%clk 0:00:10]} 26. Rd1 {[%clk 0:02:12]}  Re7 {[%clk 0:00:11]} 27. Rd5 {[%clk 0:02:10]}  Kf6 {[%clk 0:00:10]} 28. Kd3 {[%clk 0:02:10]}  h5 {[%clk 0:00:10]} 29. c5 {[%clk 0:02:08]}  g5 {[%clk 0:00:07]} 30. b4 {[%clk 0:02:08]}  a6 {[%clk 0:00:07]} 31. a4 {[%clk 0:02:08]}  Re6 {[%clk 0:00:05]} 32. b5 {[%clk 0:02:07]}  axb5 {[%clk 0:00:06]} 33. axb5 {[%clk 0:02:08]}  h4 {[%clk 0:00:05]} 34. g4 {[%clk 0:02:07]}  Kg6 {[%clk 0:00:02]} 35. Kd4 {[%clk 0:02:04]}  f6 {[%clk 0:00:02]} 36. Rd7 {[%clk 0:02:04]}  b6 {[%clk 0:00:01]} 37. c6 {[%clk 0:02:03]}  Re5 {[%clk 0:00:01]} 38. Rd5 {[%clk 0:02:03]}  Re7 {[%clk 0:00:01]} 39. Rd6 {[%clk 0:01:59]}  Re5 {[%clk 0:00:01]} 40. c7 {[%clk 0:01:59]} 1-0


[Site "https://www.chess.com"]

[Event "Titled Tuesday Blitz November 01 Late 2022"]
[White "Kanyamarala, Trisha"]
[Black "Luxama, Jacques Muller"]
[WhiteFideId "45004722"]
[BlackFideId "11900113"]
[WhiteElo "2099"]
[BlackElo "1931"]
[Result "0-1"]
[Round "10"]
[TimeControl "180+1"]
[Date "2022.11.02"]
[WhiteClock "0:00:23"]
[BlackClock "0:00:50"]

1. c4 {[%clk 0:02:57]}  Nf6 {[%clk 0:02:56]} 2. Nc3 {[%clk 0:02:57]}  e6 {[%clk 0:02:55]} 3. e4 {[%clk 0:02:57]}  d6 {[%clk 0:02:55]} 4. d4 {[%clk 0:02:55]}  Nbd7 {[%clk 0:02:55]} 5. Nf3 {[%clk 0:02:56]}  Be7 {[%clk 0:02:54]} 6. g3 {[%clk 0:02:54]}  O-O {[%clk 0:02:53]} 7. Bg2 {[%clk 0:02:55]}  e5 {[%clk 0:02:45]} 8. O-O {[%clk 0:02:55]}  exd4 {[%clk 0:02:38]} 9. Nxd4 {[%clk 0:02:54]}  Ne5 {[%clk 0:02:37]} 10. Qe2 {[%clk 0:02:45]}  Bg4 {[%clk 0:02:32]} 11. f3 {[%clk 0:02:44]}  Bd7 {[%clk 0:02:26]} 12. Be3 {[%clk 0:02:42]}  Nc6 {[%clk 0:02:24]} 13. Rfd1 {[%clk 0:02:30]}  Qc8 {[%clk 0:02:23]} 14. Rac1 {[%clk 0:02:26]}  Re8 {[%clk 0:02:22]} 15. Nd5 {[%clk 0:02:25]}  Nxd4 {[%clk 0:02:18]} 16. Bxd4 {[%clk 0:02:24]}  Nxd5 {[%clk 0:02:07]} 17. cxd5 {[%clk 0:02:23]}  c5 {[%clk 0:02:01]} 18. dxc6 {[%clk 0:02:21]}  bxc6 {[%clk 0:02:00]} 19. b4 {[%clk 0:02:18]}  Qb7 {[%clk 0:01:59]} 20. Qb2 {[%clk 0:02:16]}  Bf8 {[%clk 0:01:56]} 21. a3 {[%clk 0:02:11]}  a5 {[%clk 0:01:55]} 22. Be3 {[%clk 0:02:07]}  axb4 {[%clk 0:01:54]} 23. axb4 {[%clk 0:02:04]}  Ra4 {[%clk 0:01:46]} 24. Rb1 {[%clk 0:01:49]}  Rb8 {[%clk 0:01:43]} 25. b5 {[%clk 0:01:25]}  cxb5 {[%clk 0:01:38]} 26. Bf4 {[%clk 0:01:22]}  Be6 {[%clk 0:01:27]} 27. Bxd6 {[%clk 0:01:18]}  Qb6+ {[%clk 0:01:25]} 28. Kh1 {[%clk 0:01:00]}  Bxd6 {[%clk 0:01:24]} 29. f4 {[%clk 0:00:55]}  Bf8 {[%clk 0:01:16]} 30. f5 {[%clk 0:00:54]}  Bc4 {[%clk 0:01:14]} 31. e5 {[%clk 0:00:53]}  Ra2 {[%clk 0:01:12]} 32. Qc3 {[%clk 0:00:52]}  Qf2 {[%clk 0:01:01]} 33. Rg1 {[%clk 0:00:41]}  Bd5 {[%clk 0:01:01]} 34. Rb2 {[%clk 0:00:26]}  Rxb2 {[%clk 0:00:54]} 35. Qxb2 {[%clk 0:00:25]}  Qxb2 {[%clk 0:00:53]} 36. Bxd5 {[%clk 0:00:26]}  Rd8 {[%clk 0:00:52]} 37. e6 {[%clk 0:00:23]}  Rxd5 {[%clk 0:00:50]} 38. exf7+ {[%clk 0:00:23]}  Kxf7 {[%clk 0:00:50]} 0-1


[Site "https://www.chess.com"]